bitfinex/quotes_SOLUSD_20250228
["timestamp","ask_amount","ask_price","bid_price","bid_amount"]
[1740701587804,0.14216157,137.91,137.85,0.063]
[1740701588617,5.21816157,137.91,137.85,7.3172]
[1740701589120,0.14216157,137.91,137.85,7.3172]
[1740701592017,81.2,137.9,137.85,7.3172]
[1740701592221,81.2,137.89,137.85,7.3172]
[1740701594731,20.0,137.86,137.85,0.063]
[1740701595026,20.14216157,137.86,137.85,0.063]
[1740701595815,20.0,137.86,137.85,0.063]
[1740701596222,20.14216157,137.86,137.85,0.063]
[1740701597911,25.21976157,137.86,137.85,0.063]
[1740701598106,31.08395965,137.86,137.85,0.063]
[1740701600013,53.28928258,137.86,137.85,0.063]
[1740701600206,0.14216157,137.85,137.81,0.03]
[1740701600404,20.14216157,137.82,137.81,0.03]
[1740701601207,20.0,137.83,137.81,0.03]
[1740701601709,5.22046157,137.84,137.81,0.03]
[1740701602241,20.0,137.82,137.81,0.03]
[1740701604829,0.14216157,137.84,137.81,0.03]
[1740701605135,20.14216157,137.82,137.81,0.03]
[1740701605573,20.0,137.78,137.77,0.03]
[1740701605839,20.14216157,137.78,137.77,0.03]
[1740701606056,0.14216157,137.78,137.77,0.03]
[1740701606418,25.22266157,137.78,137.76,0.063]
[1740701606634,0.14216157,137.77,137.76,0.063]
[1740701606838,8.10956157,137.77,137.76,0.063]
[1740701607831,28.10956157,137.77,137.76,0.063]
[1740701608032,33.19046157,137.77,137.76,0.063]
[1740701609646,28.10956157,137.77,137.76,0.063]
[1740701611938,20.0,137.77,137.76,0.063]
[1740701614167,20.14216157,137.77,137.76,0.063]
[1740701617161,25.22306157,137.77,137.76,0.063]
[1740701619858,0.14216157,137.73,137.71,0.063]
[1740701621667,5.22456157,137.73,137.71,0.063]
[1740701623176,20.0,137.7,137.67,0.063]
[1740701623578,81.2,137.69,137.67,0.063]
[1740701624786,81.2,137.69,137.67,7.3266]
[1740701624962,81.2,137.69,137.67,0.063]
[1740701626158,20.0,137.7,137.67,0.063]
[1740701627065,0.14216157,137.71,137.67,0.063]
[1740701627473,81.2,137.72,137.67,0.063]
[1740701628864,0.14216157,137.71,137.67,0.063]
[1740701629460,5.22536157,137.71,137.67,0.063]
[1740701630684,81.2,137.7,137.67,0.063]
[1740701631181,20.0,137.68,137.67,0.063]
[1740701634591,81.2,137.69,137.67,0.063]
[1740701641402,81.263,137.72,137.67,0.063]
[1740701642694,81.263,137.72,137.67,18.71264886]
[1740701642890,20.063,137.72,137.67,18.71264886]
[1740701643109,0.063,137.72,137.67,18.71264886]
[1740701643692,20.063,137.72,137.67,18.71264886]
[1740701643900,20.063,137.72,137.67,0.063]
[1740701645278,81.2,137.71,137.67,0.063]
[1740701646697,0.14216157,137.7,137.67,0.063]
[1740701648391,81.2,137.69,137.67,0.063]
[1740701660128,86.2839,137.69,137.67,0.063]
[1740701660332,0.14216157,137.68,137.67,0.063]
[1740701660851,20.14216157,137.66,137.62,0.03]
[1740701661051,20.0,137.65,137.62,0.03]
[1740701661864,25.0856,137.65,137.62,0.03]
[1740701662341,0.14216157,137.64,137.62,0.03]
[1740701664459,13.31516157,137.64,137.62,0.03]
[1740701664628,13.31516157,137.64,137.54,7.2706]
[1740701664629,0.14216157,137.6,137.54,7.2706]
[1740701664828,81.2,137.59,137.54,7.2706]
[1740701666142,81.34216157,137.58,137.54,7.2706]
[1740701666345,81.34216157,137.58,137.53,7.3009]
[1740701667049,81.2,137.57,137.53,7.3009]
[1740701668345,81.2,137.57,137.53,18.2078]
[1740701668950,81.2,137.6,137.53,18.2078]
[1740701669148,81.2,137.6,137.54,18.64964886]
[1740701670448,81.2,137.6,137.55,25.4452]
[1740701670627,81.2,137.62,137.56,6.6]
[1740701672429,81.2,137.62,137.57,7.269]
[1740701673050,0.14216157,137.61,137.57,7.269]
[1740701674934,81.2,137.62,137.57,7.269]
[1740701675144,81.2,137.61,137.57,7.269]
[1740701676753,81.2,137.61,137.57,25.4415]
[1740701678533,81.2,137.61,137.57,337.4415]
[1740701680443,81.2,137.61,137.57,25.4415]
[1740701682235,81.2,137.61,137.57,7.269]
[1740701688255,81.2,137.61,137.56,6.6]
[1740701688557,81.34216157,137.6,137.56,13.8693]
[1740701689955,81.34216157,137.6,137.56,7.2693]
[1740701690262,81.34216157,137.6,137.54,7.2706]
[1740701692936,81.2,137.59,137.54,7.2706]
[1740701693957,81.2,137.59,137.53,25.4786]
[1740701696737,81.2,137.59,137.53,7.3011]
[1740701698959,81.2,137.58,137.53,7.3011]
[1740701700169,0.14216157,137.57,137.53,0.03]
[1740701700348,81.263,137.62,137.56,20.0]
[1740701700549,81.2,137.61,137.53,88.7213]
[1740701701453,81.2,137.61,137.54,18.64964886]
[1740701702471,81.2,137.61,137.55,25.4452]
[1740701703365,81.2,137.61,137.56,18.64964886]
[1740701703670,0.063,137.62,137.57,6.6]
[1740701704470,0.063,137.62,137.58,7.2684]
[1740701705568,0.063,137.62,137.57,13.8688]
[1740701706767,0.063,137.62,137.57,32.0413]
[1740701709790,0.063,137.62,137.57,13.8688]
[1740701713769,81.2,137.61,137.57,13.8688]
[1740701714163,81.2,137.61,137.55,24.8049]
[1740701715191,82.92806157,137.6,137.55,0.03]
[1740701715360,20.0,137.57,137.55,0.03]
[1740701715567,81.2,137.56,137.55,0.03]
[1740701715969,81.34216157,137.56,137.55,0.03]
[1740701716270,20.14216157,137.56,137.55,0.03]
[1740701716463,25.23076157,137.56,137.55,0.03]
[1740701718095,25.23076157,137.56,137.51,2.1225197]
[1740701718096,0.14216157,137.55,137.51,2.1225197]
[1740701718310,20.14216157,137.52,137.51,2.1225197]
[1740701719075,38.79181043,137.52,137.51,2.1225197]
[1740701719292,38.79181043,137.52,137.51,1e-08]
[1740701720376,44.56100681,137.52,137.51,1e-08]
[1740701720589,20.14216157,137.52,137.51,1e-08]
[1740701722485,38.79181043,137.52,137.51,1e-08]
[1740701724108,20.14216157,137.52,137.51,1e-08]
[1740701724315,20.0,137.52,137.51,1e-08]
[1740701724505,20.14216157,137.52,137.51,1e-08]
[1740701724817,11.87932529,137.57,137.51,1e-08]
[1740701725183,20.0,137.56,137.51,1e-08]
[1740701725381,20.0,137.54,137.51,1e-08]
[1740701728608,81.2,137.53,137.51,1e-08]
[1740701734706,81.2,137.52,137.51,1e-08]
[1740701739814,81.34216157,137.52,137.51,1e-08]
[1740701740322,86.43226157,137.52,137.51,1e-08]
[1740701740624,5.23226157,137.52,137.51,1e-08]
[1740701741003,0.14216157,137.51,137.45,7.2753]
[1740701741203,18.79181043,137.51,137.45,7.2753]
[1740701741409,20.41851043,137.51,137.45,7.2753]
[1740701742114,5.0909,137.5,137.42,18.1912]
[1740701743018,18.79181043,137.49,137.42,18.1912]
[1740701743225,18.79181043,137.49,137.41,13.8774]
[1740701744224,7.23338157,137.49,137.41,6.6]
[1740701744797,0.14216157,137.49,137.41,13.8774]
[1740701746531,0.14216157,137.47,137.41,13.8774]
[1740701746825,81.2,137.46,137.41,32.0711]
[1740701746998,81.2,137.49,137.44,20.0]
[1740701747200,81.2,137.48,137.44,20.0]
[1740701747692,81.2,137.5,137.45,20.0]
[1740701748305,81.2,137.5,137.46,27.2748]
[1740701748521,81.2,137.52,137.46,27.2748]
[1740701749517,81.2,137.52,137.46,20.0]
[1740701749518,0.14216157,137.51,137.46,20.0]
[1740701749727,0.14216157,137.51,137.45,6.6]
[1740701750111,81.2,137.5,137.45,13.8752]
[1740701750312,81.2,137.5,137.45,6.6]
[1740701750714,81.2,137.5,137.45,13.8752]
[1740701751406,81.2,137.5,137.45,325.8752]
[1740701752824,81.2,137.5,137.45,344.0636]
[1740701753026,81.2,137.5,137.45,13.8752]
[1740701754531,81.2,137.5,137.45,6.6]
[1740701755504,81.2,137.5,137.45,13.8751]
[1740701762539,0.063,137.53,137.46,18.64964886]
[1740701762714,0.063,137.53,137.46,100.74964886]
[1740701763529,0.063,137.53,137.47,7.2743]
[1740701764742,0.063,137.53,137.47,319.2743]
[1740701767239,0.063,137.53,137.48,18.64964886]
[1740701767541,0.063,137.53,137.5,18.64964886]
[1740701767720,0.063,137.53,137.51,6.6]
[1740701768228,0.063,137.53,137.52,7.2716]
[1740701770627,0.063,137.53,137.52,319.2716]
[1740701771646,0.063,137.53,137.52,7.2716]
[1740701771851,0.063,137.53,137.5,7.2723]
[1740701772058,0.063,137.53,137.5,6.6]
[1740701772967,0.063,137.53,137.5,13.8724]
[1740701774554,0.063,137.53,137.51,18.64964886]
[1740701774763,0.063,137.53,137.51,421.29454886]
[1740701774943,0.063,137.53,137.51,419.29454886]
[1740701775443,0.063,137.53,137.51,421.29454886]
[1740701775649,0.063,137.53,137.52,7.2716]
[1740701775843,0.063,137.53,137.52,25.92124886]
[1740701776051,0.063,137.53,137.52,27.58976856]
[1740701776448,0.063,137.53,137.52,26.06341043]
[1740701776855,1.6171,137.62,137.53,18.79181043]
[1740701777053,0.063,137.62,137.56,20.0]
[1740701777233,0.063,137.62,137.57,6.6]
[1740701777743,0.063,137.62,137.58,7.2684]
[1740701779237,0.063,137.62,137.57,6.6]
[1740701780156,0.063,137.62,137.57,318.6]
[1740701782164,0.063,137.62,137.57,6.6]
[1740701782660,0.063,137.62,137.57,13.8689]
[1740701786062,0.063,137.62,137.57,6.6]
[1740701787856,0.063,137.62,137.55,83.696]
[1740701788165,81.263,137.62,137.55,90.296]
[1740701788543,81.263,137.62,137.55,97.566]
[1740701788742,81.263,137.62,137.56,18.64964886]
[1740701788938,81.263,137.62,137.55,90.296]
[1740701789165,81.263,137.62,137.55,97.5659]
[1740701789661,81.263,137.62,137.56,25.28534886]
[1740701790046,81.263,137.62,137.57,7.269]
[1740701792463,81.263,137.62,137.56,13.905]
[1740701792966,81.263,137.62,137.59,20.0]
[1740701793158,81.263,137.62,137.56,13.905]
[1740701795467,81.263,137.62,137.56,325.905]
[1740701795873,81.263,137.62,137.56,13.905]
[1740701796168,81.263,137.62,137.56,7.2693]
[1740701797069,81.263,137.62,137.56,44.09274886]
[1740701798745,0.063,137.62,137.57,18.64964886]
[1740701798949,0.063,137.62,137.59,18.64964886]
[1740701799156,0.063,137.62,137.6,6.6]
[1740701799358,0.063,137.62,137.61,18.64964886]
[1740701799752,0.063,137.62,137.61,18.79181043]
[1740701800456,0.063,137.62,137.61,100.89181043]
[1740701801782,0.063,137.62,137.61,108.15871043]
[1740701802483,0.063,137.62,137.61,423.81421723]
[1740701804457,0.063,137.62,137.61,250.31421723]
[1740701804979,0.063,137.62,137.61,248.31421723]
[1740701805361,0.063,137.62,137.61,250.31421723]
[1740701805775,0.063,137.62,137.61,248.31421723]
[1740701805951,0.063,137.62,137.61,244.51654886]
[1740701806157,0.063,137.62,137.61,89.3669]
[1740701807484,0.063,137.62,137.61,401.3669]
[1740701807870,0.063,137.62,137.61,82.1]
[1740701808979,0.063,137.62,137.61,89.3669]
[1740701809488,0.063,137.62,137.61,82.1]
[1740701810775,0.063,137.62,137.61,89.3669]
[1740701811873,0.063,137.62,137.61,7.2669]
[1740701812363,0.063,137.62,137.6,6.58]
[1740701813483,0.063,137.62,137.6,13.8473]
[1740701814278,0.063,137.62,137.59,6.58]
[1740701814500,0.063,137.62,137.58,6.58]
[1740701815584,0.063,137.62,137.58,13.8484]
[1740701816581,0.063,137.62,137.59,18.64964886]
[1740701817480,0.063,137.62,137.6,7.2674]
[1740701819778,0.063,137.62,137.6,319.2674]
[1740701822375,0.063,137.62,137.61,18.79181043]
[1740701823191,0.063,137.62,137.61,26.05871043]
[1740701824289,0.063,137.62,137.61,28.05871043]
[1740701825169,0.063,137.62,137.61,110.15871043]
[1740701825374,0.063,137.62,137.61,422.15871043]
[1740701826877,0.063,137.65,137.64,38.79181043]
[1740701827079,0.0001,137.65,137.64,127.47181043]
[1740701827390,0.0001,137.65,137.64,129.47181043]
[1740701827583,0.0001,137.65,137.64,273.23711043]
[1740701828087,0.0001,137.67,137.66,20.64964886]
[1740701828266,0.0001,137.67,137.66,22.1742368]
[1740701829381,0.0001,137.67,137.66,240.91639837]
[1740701829585,0.0001,137.69,137.68,28.05501043]
[1740701829767,0.0001,137.69,137.68,115.24435293]
[1740701829985,0.0001,137.69,137.68,427.24435293]
[1740701830184,0.0001,137.69,137.68,431.42494354]
[1740701832389,0.063,137.72,137.71,22.14216157]
[1740701832692,0.063,137.76,137.75,40.79181043]
[1740701832898,0.063,137.76,137.75,260.91546153]
[1740701833197,0.063,137.76,137.75,259.39181043]
[1740701833374,0.063,137.76,137.75,257.39181043]
[1740701833579,0.063,137.76,137.75,20.0]
[1740701833981,0.063,137.76,137.73,82.1]
[1740701834688,0.063,137.76,137.73,89.3604]
[1740701835201,0.063,137.76,137.73,89.3605]
[1740701835395,0.063,137.76,137.74,18.64964886]
[1740701835574,0.063,137.76,137.74,330.64964886]
[1740701835778,0.063,137.76,137.74,337.90934886]
[1740701837023,0.063,137.76,137.75,0.14216157]
[1740701837983,0.063,137.76,137.75,7.40166157]
[1740701838487,0.063,137.76,137.75,229.52549868]
[1740701838712,0.063,137.76,137.75,246.65131043]
[1740701840006,0.063,137.76,137.75,558.65131043]
[1740701840892,0.0001,137.76,137.75,560.65131043]
[1740701841197,6.6663,137.84,137.79,20.14216157]
[1740701841415,6.6663,137.84,137.8,6.58]
[1740701841716,0.063,137.85,137.8,6.58]
[1740701842124,0.063,137.85,137.81,7.2563]
[1740701843714,0.063,137.85,137.81,25.3972]
[1740701843920,0.063,137.85,137.81,107.4972]
[1740701844108,0.063,137.85,137.81,419.4972]
[1740701844305,0.063,137.85,137.81,401.3563]
[1740701844515,0.063,137.85,137.8,6.58]
[1740701845013,0.063,137.85,137.8,13.8367]
[1740701845187,0.063,137.85,137.81,2.14216157]
[1740701845392,0.063,137.85,137.82,18.64964886]
[1740701845591,0.063,137.85,137.82,100.74964886]
[1740701846010,0.063,137.85,137.83,0.14216157]
[1740701846334,0.063,137.85,137.84,7.2547]
[1740701847429,0.063,137.85,137.84,319.2547]
[1740701848518,0.063,137.85,137.83,7.255]
[1740701850431,0.063,137.85,137.83,89.355]
[1740701852842,7.9419,137.84,137.8,6.58]
[1740701854942,94.2202,137.84,137.76,82.1]
[1740701855153,81.2,137.83,137.75,6.58]
[1740701855324,81.2,137.83,137.77,0.063]
[1740701855929,7.5473,137.82,137.77,0.063]
[1740701856137,20.0,137.79,137.77,0.063]
[1740701856315,8.064,137.78,137.77,0.063]
[1740701856936,13.1445,137.78,137.77,0.063]
[1740701858036,8.064,137.78,137.77,0.063]
[1740701861247,7.6919,137.82,137.77,0.063]
[1740701863630,12.771,137.82,137.77,0.063]
[1740701864021,0.14216157,137.81,137.77,0.063]
[1740701864438,81.34216157,137.81,137.77,0.063]
[1740701865027,0.14216157,137.79,137.77,0.063]
[1740701865221,88.7514,137.78,137.77,0.063]
[1740701865645,88.89356157,137.78,137.77,0.063]
[1740701867060,93.97406157,137.78,137.77,0.063]
[1740701868433,20.0,137.75,137.72,0.03]
[1740701868634,20.14216157,137.74,137.72,0.03]
[1740701868819,81.34216157,137.73,137.72,0.03]
[1740701869029,12.85746157,137.73,137.72,0.03]
[1740701870840,20.0,137.7,137.63,0.063]
[1740701871049,25.0835,137.7,137.63,6.643]
[1740701871217,25.0835,137.7,137.63,0.063]
[1740701871538,0.14216157,137.69,137.63,0.063]
[1740701872638,7.7684,137.68,137.63,0.063]
[1740701873247,12.8526,137.68,137.63,0.063]
[1740701873846,0.14216157,137.67,137.63,0.063]
[1740701874845,81.2,137.66,137.63,0.063]
[1740701875446,86.285,137.66,137.63,0.063]
[1740701875648,81.2,137.65,137.63,0.063]
[1740701879232,86.2853,137.65,137.63,0.063]
[1740701879755,81.2,137.65,137.63,0.063]
[1740701880350,81.2,137.64,137.63,0.063]
[1740701880827,89.2413,137.72,137.63,38.71264886]
[1740701881025,81.2,137.71,137.63,127.39264886]
[1740701883254,81.2,137.71,137.64,7.2653]
[1740701883457,81.2,137.71,137.64,319.2653]
[1740701885452,86.2831,137.71,137.64,319.2653]
[1740701886031,81.34216157,137.7,137.63,6.643]
[1740701888852,5.0838,137.69,137.63,6.643]
[1740701889152,81.2,137.68,137.63,6.643]
[1740701890955,86.2844,137.68,137.63,6.643]
[1740701895361,91.2713,137.72,137.64,18.64964886]
[1740701895556,91.2713,137.72,137.65,0.14216157]
[1740701895557,0.03,137.72,137.65,0.14216157]
[1740701895753,0.03,137.72,137.68,2.14216157]
[1740701896063,0.03,137.72,137.71,20.14216157]
[1740701896263,0.03,137.72,137.71,82.24216157]
[1740701896945,0.03,137.72,137.71,104.89181043]
[1740701897155,0.03,137.72,137.71,112.15341043]
[1740701897665,87.5275,137.83,137.76,20.0]
[1740701897843,0.03,137.84,137.77,18.64964886]
[1740701898334,0.03,137.84,137.78,0.14216157]
[1740701898537,0.03,137.84,137.79,18.64964886]
[1740701898752,0.03,137.84,137.79,100.74964886]
[1740701899140,0.03,137.84,137.8,7.2568]
[1740701899444,0.03,137.84,137.81,6.58]
[1740701902362,86.2789,137.83,137.76,6.58]
[1740701902538,81.2,137.82,137.77,20.0]
[1740701902741,81.2,137.82,137.76,6.58]
[1740701903556,81.2,137.82,137.77,20.0]
[1740701904358,81.2,137.82,137.76,6.58]
[1740701904559,81.2,137.82,137.76,13.8388]
[1740701904756,0.03,137.84,137.77,0.14216157]
[1740701904960,0.03,137.84,137.79,20.0]
[1740701905159,0.03,137.84,137.78,18.64964886]
[1740701906472,0.03,137.84,137.79,7.2574]
[1740701906847,0.03,137.84,137.8,18.64964886]
[1740701907150,0.03,137.84,137.81,6.58]
[1740701907565,0.03,137.84,137.81,88.68]
[1740701908771,0.03,137.84,137.82,7.2558]
[1740701908967,0.03,137.84,137.83,18.79181043]
[1740701909785,0.03,137.84,137.83,330.79181043]
[1740701909962,0.03,137.84,137.83,312.0]
[1740701910381,0.03,137.84,137.83,332.79181043]
[1740701910959,0.063,137.85,137.84,44.66181043]
[1740701911165,0.063,137.85,137.84,24.31422699]
[1740701911581,0.063,137.87,137.86,20.79181043]
[1740701911783,0.063,137.87,137.86,247.49416766]
[1740701911973,0.063,137.87,137.86,245.97181043]
[1740701913078,0.063,137.87,137.86,253.22551043]
[1740701913373,0.063,137.87,137.86,251.22551043]
[1740701914284,0.063,137.87,137.86,563.22551043]
[1740701915367,0.063,137.87,137.86,563.28851043]
[1740701915567,0.063,137.87,137.86,251.28851043]
[1740701915883,0.063,137.87,137.86,114.78851043]
[1740701916062,0.063,137.87,137.86,107.39264886]
[1740701916257,0.063,137.87,137.86,0.063]
[1740701918876,0.063,137.87,137.86,82.30516157]
[1740701919780,0.063,137.87,137.86,102.95481043]
[1740701919981,0.063,137.87,137.86,110.20851043]
[1740701921583,0.063,137.87,137.86,108.20851043]
[1740701922183,0.063,137.87,137.86,420.20851043]
[1740701923976,0.063,137.87,137.86,82.163]
[1740701924602,0.063,137.87,137.86,0.063]
[1740701925576,0.063,137.87,137.86,7.3167]
[1740701926187,0.063,137.87,137.86,0.063]
[1740701932290,0.20516157,137.87,137.86,0.063]
[1740701932800,0.20516157,137.87,137.72,38.3681]
[1740701932801,0.14216157,137.85,137.76,6.58]
[1740701933095,1.6625,137.81,137.73,82.1]
[1740701933399,0.14216157,137.8,137.74,6.58]
[1740701935502,1.6625,137.81,137.74,13.8399]
[1740701936406,20.0,137.79,137.74,13.8399]
[1740701936786,20.0,137.79,137.74,6.58]
[1740701937290,20.0,137.79,137.72,401.424]
[1740701938301,101.2,137.79,137.74,0.063]
[1740701941009,81.2,137.79,137.74,0.063]
[1740701941193,1.6625,137.81,137.74,82.163]
[1740701941695,1.6625,137.81,137.75,18.64964886]
[1740701941905,6.6501,137.82,137.76,6.58]
[1740701942127,6.6501,137.82,137.77,18.64964886]
[1740701942308,6.6501,137.82,137.77,412.74964886]
[1740701942986,1.5541,137.84,137.77,412.74964886]
[1740701943181,1.5541,137.84,137.78,7.2579]
[1740701943907,0.063,137.87,137.8,0.14216157]
[1740701944108,0.063,137.87,137.81,25.22964886]
[1740701945210,0.063,137.87,137.81,32.48554886]
[1740701945511,0.063,137.87,137.82,0.14216157]
[1740701946005,0.063,137.87,137.84,0.14216157]
[1740701946309,0.063,137.87,137.85,18.64964886]
[1740701946885,0.063,137.87,137.85,312.0]
[1740701947145,0.063,137.87,137.84,218.6]
[1740701947900,0.063,137.87,137.84,82.1]
[1740701950195,0.063,137.87,137.84,394.1]
[1740701951820,0.063,137.87,137.84,401.3547]
[1740701952006,0.063,137.87,137.84,394.1]
[1740701952321,0.063,137.87,137.84,82.1]
[1740701952732,0.063,137.87,137.81,251.08564886]
[1740701952937,0.063,137.87,137.81,114.58564886]
[1740701955325,0.063,137.87,137.81,426.58564886]
[1740701955517,0.063,137.87,137.83,7.2553]
[1740701955838,0.063,137.87,137.86,20.0]
[1740701956005,0.063,137.87,137.86,263.97181043]
[1740701957236,0.063,137.87,137.86,271.22551043]
[1740701957908,0.063,137.87,137.86,271.08334886]
[1740701958919,0.063,137.87,137.86,583.08334886]
[1740701960813,0.063,137.87,137.86,564.4337]
[1740701961013,0.063,137.87,137.86,252.4337]
[1740701961414,0.063,137.87,137.86,225.18]
[1740701962244,0.063,137.87,137.82,340.82]
[1740701962422,0.063,137.87,137.82,210.88]
[1740701962851,0.063,137.87,137.82,218.1358]
[1740701963835,0.063,137.87,137.82,210.88]
[1740701964041,0.063,137.87,137.82,88.66]
[1740701964724,0.063,137.87,137.82,95.9157]
[1740701965321,0.063,137.87,137.82,88.66]
[1740701966245,0.063,137.87,137.82,95.9157]
[1740701968225,0.20516157,137.87,137.82,82.1]
[1740701968425,6.3322,137.86,137.82,82.1]
[1740701969347,11.41,137.86,137.82,82.1]
[1740701969552,6.3322,137.86,137.82,82.1]
[1740701969915,6.3322,137.86,137.8,218.6]
[1740701970121,6.3322,137.86,137.81,7.2563]
[1740701970346,6.3322,137.86,137.81,89.3563]
[1740701970528,0.063,137.87,137.82,18.64964886]
[1740701970853,0.063,137.87,137.85,20.0]
[1740701971044,0.063,137.87,137.85,245.18]
[1740701971221,0.063,137.87,137.86,18.64964886]
[1740701971423,0.063,137.87,137.86,25.90334886]
[1740701971817,0.063,137.87,137.86,244.64551043]
[1740701972023,0.0001,137.87,137.86,266.48551043]
[1740701972336,0.0001,137.87,137.86,268.48551043]
[1740701973230,0.0001,137.87,137.86,246.64551043]
[1740701974947,0.0001,137.87,137.86,558.64551043]
[1740701979223,0.063,137.91,137.9,0.14216157]
[1740701979439,0.03,137.92,137.9,245.95181043]
[1740701979747,0.03,137.96,137.94,20.0]
[1740701979953,0.03,137.96,137.94,238.6]
[1740701980245,0.03,137.96,137.94,257.24964886]
[1740701980648,0.03,137.96,137.94,264.49914886]
[1740701982164,0.03,137.96,137.94,238.6]
[1740701982637,0.03,137.96,137.94,550.6]
[1740701983655,0.03,137.96,137.94,557.8495]
[1740701984155,0.03,137.96,137.94,421.3495]
[1740701984544,0.03,137.96,137.94,439.99914886]
[1740701986454,0.03,137.96,137.94,421.3495]
[1740701987030,0.03,137.96,137.94,128.14131043]
[1740701987750,0.03,137.96,137.94,264.64131043]
[1740701988737,0.03,137.96,137.95,0.14216157]
[1740701988940,0.03,137.96,137.95,6.70216157]
[1740701989754,0.0001,137.96,137.95,26.87333276]
[1740701989958,0.0001,137.96,137.95,245.47333276]
[1740701990137,0.0001,137.96,137.95,555.95181043]
[1740701990832,0.0001,137.96,137.95,563.20081043]
[1740701991651,0.0001,137.96,137.95,563.05864886]
[1740701991955,0.0001,137.96,137.95,89.349]
[1740701992651,0.0001,137.96,137.95,108.14081043]
[1740701993449,0.0001,137.96,137.95,244.64081043]
[1740701994868,0.0001,137.96,137.95,556.64081043]
[1740701995065,0.03,137.99,137.98,20.14216157]
[1740701995252,0.03,137.99,137.98,238.74216157]
[1740701996255,0.03,137.99,137.98,264.63921043]
[1740701996966,0.03,138.0,137.98,264.63921043]
[1740701997144,0.0001,138.0,137.99,26.87291728]
[1740701997343,0.0001,138.0,137.99,26.87284795]
[1740701997667,0.0001,138.0,137.99,245.47284795]
[1740701997869,0.0001,138.0,137.99,243.80964886]
[1740701998046,0.0001,138.0,137.99,225.16]
[1740701998245,0.0001,138.0,137.99,232.4069]
[1740701998461,0.0001,138.0,137.99,251.19871043]
[1740701999444,0.0001,138.01,138.0,0.14216157]
[1740702000457,0.0001,138.01,138.0,250.15910731]
[1740702000665,0.0001,138.01,138.0,248.63811043]
[1740702000860,0.0001,138.01,138.0,244.63811043]
[1740702001768,0.0001,138.01,138.0,558.63811043]
[1740702002963,0.0001,138.05,138.04,18.64964886]
[1740702003265,0.0001,138.05,138.04,243.80964886]
[1740702003864,0.0001,138.05,138.04,243.95181043]
[1740702004653,0.0001,138.05,138.04,251.19601043]
[1740702006071,0.0001,138.05,138.04,566.76696754]
[1740702007079,0.0001,138.05,138.04,566.62480597]
[1740702007251,0.0001,138.05,138.04,235.97515711]
[1740702010182,0.0001,138.05,138.04,547.97515711]
[1740702010980,0.0001,138.05,138.04,430.12480597]
[1740702011479,0.0001,138.05,138.04,118.26696754]
[1740702012183,0.0001,138.05,138.04,89.3442]
[1740702012368,0.0001,138.05,138.04,95.9042]
[1740702012771,0.0001,138.05,138.04,89.3442]
[1740702014382,0.0001,138.05,138.04,401.3442]
[1740702016781,0.0001,138.05,138.04,537.8442]
[1740702017579,0.0001,138.05,138.04,225.8442]